[Event "XXIX Cracovia 2018"]
[Site "Krakow"]
[Date "2018.12.28"]
[Round "2"]
[White "Belous, Mikhail"]
[Black "Cholleti Sahajasri"]
[Result "1-0"]
[ECO "E44"]
[WhiteElo "2299"]
[BlackElo "2069"]
[Annotator "NA"]
[PlyCount "105"]
[EventDate "2018.12.27"]
[EventType "swiss"]
[EventCountry "POL"]
[SourceTitle "playchess.com"]
[Source "ChessBase"]
[SourceQuality "1"]
[TimeControl "40/5400+30:1800+30"]

1. d4 {[%emt 0:00:00]} Nf6 {[%emt 0:00:00]} 2. c4 {[%emt 0:00:01]} e6 {[%emt 0:00:17]} 3. Nc3 {[%emt 0:00:15]} Bb4 4. e3 b6 {[%emt 0:02:57]} 5. Nge2 {[%emt 0:00:32]} Ne4 {[%emt 0:02:28]} 6. Qc2 {[%emt 0:04:31]} Bb7 {[%emt 0:00:46]} 7. a3 {[%emt 0:02:26]} Bxc3+ {[%emt 0:00:46]} 8. Nxc3 {[%emt 0:00:11]} Nxc3 {[%emt 0:00:35]} 9. Qxc3 {[%emt 0:00:10]} d6 {[%emt 0:03:48]} 10. b3 {[%emt 0:18:25]} Nd7 {[%emt 0:12:14]} 11. Bb2 {[%emt 0:00:34]} Qf6 {[%emt 0:14:35]} 12. Qd2 {[%emt 0:05:05]} a5 {[%emt 0:05:48]} 13. d5 {[%emt 0:05:43]} Qg6 {[%emt 0:13:35]} 14. Bd3 {[%emt 0:33:09]} Qxg2 {[%emt 0:01:46]} 15. O-O-O {[%emt 0:00:23]} Nc5 {[%emt 0:00:29]} 16. Bc2 {[%emt 0:01:03]} e5 {[%emt 0:04:51]} 17. Rhg1 {[%emt 0:01:26]} Qf3 {[%emt 0:07:34]} 18. Rxg7 {[%emt 0:01:20]} Ne4 {[%emt 0:02:56]} 19. Bxe4 {[%emt 0:02:51]} Qxe4 {[%emt 0:00:03]} 20. f4 {[%emt 0:05:41]} a4 {[%emt 0:07:59]} 21. fxe5 {[%emt 0:00:34]} axb3 {[%emt 0:00:36]} 22. Qd3 {[%emt 0:04:22]} Qxd3 {[%emt 0:01:09]} 23. Rxd3 {[%emt 0:00:01]} Ra4 {[%emt 0:02:36]} 24. Rg4 {[%emt 0:02:06]} h5 {[%emt 0:05:12]} 25. Re4 {[%emt 0:01:12]} Rg8 {[%emt 0:01:15]} 26. exd6+ {[%emt 0:00:20]} Kd7 {[%emt 0:00:18]} 27. dxc7 {[%emt 0:00:59]} Rg1+ {[%emt 0:05:21]} 28. Kd2 {[%emt 0:00:38]} Rg2+ {[%emt 0:02:02]} 29. Kc3 {[%emt 0:00:13]} b5 {[%emt 0:00:04]} 30. Rdd4 {[%emt 0:04:49]} bxc4 {[%emt 0:01:33]} 31. Rxc4 {[%emt 0:00:14]} Rxc4+ {[%emt 0:00:04]} 32. Rxc4 {[%emt 0:00:09]} Rxh2 {[%emt 0:00:58]} 33. Kxb3 {[%emt 0:00:19]} Re2 {[%emt 0:01:01]} 34. e4 {[%emt 0:04:25]} h4 {[%emt 0:00:06]} 35. d6 {[%emt 0:02:24]} h3 {[%emt 0:01:08]} 36. c8=Q+ {[%emt 0:00:34]} Bxc8 {[%emt 0:00:05]} 37. Rc7+ {[%emt 0:00:04]} Kxd6 {[%emt 0:00:43]} 38. Rxc8 {[%emt 0:00:06]} Re3+ {[%emt 0:00:21]} 39. Bc3 {[%emt 0:00:31]} Rxe4 {[%emt 0:00:39]} 40. Rh8 {[%emt 0:00:00]} Re3 {[%emt 0:00:00]} 41. Kc4 {[%emt 0:01:19]} f5 {[%emt 0:04:13]} 42. Bd2 {[%emt 0:06:40]} Rf3 {[%emt 0:00:49]} 43. Kd4 {[%emt 0:00:35]} Ke6 {[%emt 0:03:44]} 44. a4 {[%emt 0:01:19]} Ra3 {[%emt 0:12:33]} 45. a5 {[%emt 0:00:20]} Ra4+ {[%emt 0:00:14]} 46. Kd3 {[%emt 0:01:13]} f4 {[%emt 0:00:50]} 47. Rxh3 {[%emt 0:10:10]} Ra3+ {[%emt 0:00:42]} 48. Bc3 {[%emt 0:00:05]} Kf5 {[%emt 0:00:02]} 49. Rh8 {[%emt 0:07:03]} f3 {[%emt 0:00:16]} 50. Rf8+ {[%emt 0:00:17]} Kg4 {[%emt 0:00:02]} 51. Kc4 {[%emt 0:00:25]} Kg3 {[%emt 0:00:42]} 52. Kb4 {[%emt 0:00:11]} Ra2 {[%emt 0:00:04]} 53. Bd4 {[%emt 0:01:03]} 1-0

[Event "XXIX Cracovia 2018"]
[Site "Krakow"]
[Date "2018.12.28"]
[Round "2"]
[White "Ojas Kulkarni"]
[Black "Janik, Igor"]
[Result "0-1"]
[ECO "A28"]
[WhiteElo "2282"]
[BlackElo "2476"]
[Annotator "ChessBase"]
[PlyCount "42"]
[EventDate "2018.12.27"]
[EventType "swiss"]
[EventCountry "POL"]
[SourceTitle "playchess.com"]
[Source "ChessBase"]
[SourceQuality "1"]
[TimeControl "40/5400+30:1800+30"]

1. c4 {[%emt 0:00:00]} e5 {[%emt 0:00:00]} 2. Nc3 {[%emt 0:00:00]} Nf6 {[%emt 0:00:00]} 3. Nf3 {[%emt 0:00:00]} Nc6 {[%emt 0:00:00]} 4. e3 {[%emt 0:00:09]} Bb4 {[%emt 0:00:02]} 5. Qc2 {[%emt 0:00:11]} Bxc3 {[%emt 0:00:06]} 6. dxc3 {[%emt 0:07:11]} d6 {[%emt 0:00:59]} 7. e4 {[%emt 0:00:08]} h6 {[%emt 0:00:50]} 8. Bd3 {[%emt 0:00:46]} O-O {[%emt 0:00:54]} 9. Nd2 {[%emt 0:02:43]} a5 {[%emt 0:00:36]} 10. Nf1 {[%emt 0:01:22]} a4 {[%emt 0:02:00]} 11. Ne3 {[%emt 0:02:29]} Be6 {[%emt 0:01:01]} 12. Qe2 {[%emt 0:07:52]} Nd7 {[%emt 0:01:43]} 13. h4 {[%emt 0:00:29]} Nc5 {[%emt 0:01:12]} 14. g4 {[%emt 0:01:13]} Ne7 {[%emt 0:03:08]} 15. Nf5 {[%emt 0:05:40]} f6 {[%emt 0:24:03]} 16. g5 {[%emt 0:23:44]} fxg5 {[%emt 0:01:43]} 17. Nxh6+ {[%emt 0:08:48]} gxh6 {[%emt 0:00:51]} 18. hxg5 {[%emt 0:00:07]} Qd7 {[%emt 0:07:46]} 19. f3 {[%emt 0:08:43]} Nxd3+ {[%emt 0:03:05]} 20. Qxd3 {[%emt 0:00:02]} Ng6 {[%emt 0:01:50]} 21. Rxh6 {[%emt 0:02:17]} Kg7 {[%emt 0:01:13]} 0-1

[Event "XXIX Cracovia 2018"]
[Site "Krakow"]
[Date "2018.12.28"]
[Round "2"]
[White "Miroshnichenko, Pavel"]
[Black "Gumularz, Szymon"]
[Result "1/2-1/2"]
[ECO "A05"]
[WhiteElo "2275"]
[BlackElo "2462"]
[Annotator "ChessBase"]
[PlyCount "34"]
[EventDate "2018.12.27"]
[EventType "swiss"]
[EventCountry "POL"]
[SourceTitle "playchess.com"]
[Source "ChessBase"]
[SourceQuality "1"]
[TimeControl "40/5400+30:1800+30"]

1. Nf3 {[%emt 0:00:00]} Nf6 {[%emt 0:00:00]} 2. c4 {[%emt 0:00:00]} e6 {[%emt 0:00:00]} 3. Nc3 {[%emt 0:00:06]} d5 {[%emt 0:00:00]} 4. e3 {[%emt 0:00:18]} a6 {[%emt 0:00:17]} 5. d4 {[%emt 0:00:22]} dxc4 {[%emt 0:01:19]} 6. Bxc4 {[%emt 0:00:26]} b5 {[%emt 0:00:05]} 7. Bb3 {[%emt 0:00:46]} Bb7 {[%emt 0:00:09]} 8. O-O {[%emt 0:00:14]} c5 {[%emt 0:00:04]} 9. e4 {[%emt 0:01:41]} cxd4 {[%emt 0:03:35]} 10. Nxd4 {[%emt 0:01:12]} Nc6 {[%emt 0:00:20]} 11. Nxc6 {[%emt 0:04:22]} Qxd1 {[%emt 0:08:11]} 12. Rxd1 {[%emt 0:00:13]} Bxc6 {[%emt 0:00:04]} 13. f3 {[%emt 0:01:12]} Nd7 {[%emt 0:17:05]} 14. Be3 {[%emt 0:02:21]} Bc5 {[%emt 0:01:16]} 15. Kf2 {[%emt 0:05:06]} Bxe3+ {[%emt 0:00:47]} 16. Kxe3 {[%emt 0:00:06]} Ke7 {[%emt 0:00:02]} 17. Ne2 {[%emt 0:05:58]} Bb7 {[%emt 0:03:28]} 1/2-1/2

[Event "XXIX Cracovia 2018"]
[Site "Krakow"]
[Date "2018.12.28"]
[Round "2"]
[White "Piotrowski, Przemyslaw"]
[Black "Kosakowski, Jakub"]
[Result "0-1"]
[ECO "A48"]
[WhiteElo "2269"]
[BlackElo "2415"]
[Annotator "NA"]
[PlyCount "54"]
[EventDate "2018.12.27"]
[EventType "swiss"]
[EventCountry "POL"]
[SourceTitle "playchess.com"]
[Source "ChessBase"]
[SourceQuality "1"]
[TimeControl "40/5400+30:1800+30"]

1. d4 {[%emt 0:00:00]} Nf6 {[%emt 0:00:00]} 2. Nf3 {[%emt 0:00:00]} g6 {[%emt 0:00:00]} 3. c4 {[%emt 0:00:05]} Bg7 {[%emt 0:00:01]} 4. g3 {[%emt 0:00:04]} O-O {[%emt 0:01:30]} 5. Bg2 {[%emt 0:00:07]} d6 {[%emt 0:00:16]} 6. Nc3 {[%emt 0:00:11]} c6 {[%emt 0:02:48]} 7. O-O {[%emt 0:00:06]} a6 {[%emt 0:00:21]} 8. e4 {[%emt 0:07:27]} Bg4 {[%emt 0:02:54]} 9. h3 {[%emt 0:05:57]} Bxf3 {[%emt 0:00:14]} 10. Bxf3 {[%emt 0:00:07]} Nfd7 {[%emt 0:01:02]} 11. a4 {[%emt 0:06:27]} a5 {[%emt 0:04:24]} 12. Be3 {[%emt 0:04:23]} Na6 {[%emt 0:00:43]} 13. Bg2 {[%emt 0:03:48]} e5 {[%emt 0:02:11]} 14. d5 {[%emt 0:15:39]} Ndc5 {[%emt 0:01:31]} 15. Qe2 {[%emt 0:04:36]} Qc7 {[%emt 0:04:28]} 16. Rad1 {[%emt 0:01:58]} Rae8 {[%emt 0:06:51]} 17. h4 {[%emt 0:04:29]} f5 {[%emt 0:05:20]} 18. Bh3 {[%emt 0:09:39]} f4 {[%emt 0:02:39]} 19. Bc1 {[%emt 0:05:35]} Nb3 {[%emt 0:02:37]} 20. Qg4 {[%emt 0:02:18]} Nac5 {[%emt 0:01:23]} 21. h5 {[%emt 0:02:21]} Rf6 {[%emt 0:03:48]} 22. dxc6 {[%emt 0:02:40]} bxc6 {[%emt 0:00:17]} 23. hxg6 {[%emt 0:04:51]} Rxg6 {[%emt 0:01:18]} 24. Qh5 {[%emt 0:01:24]} Qf7 {[%emt 0:00:14]} 25. Kh2 {[%emt 0:01:32]} Nxc1 {[%emt 0:00:14]} 26. Rxc1 {[%emt 0:00:19]} Nd3 {[%emt 0:00:22]} 27. Rc2 {[%emt 0:01:55]} Nxf2 {[%emt 0:00:31]} 0-1

[Event "XXIX Cracovia 2018"]
[Site "Krakow"]
[Date "2018.12.28"]
[Round "2"]
[White "Chylewski, Patryk"]
[Black "Hnydiuk, Aleksander"]
[Result "1/2-1/2"]
[ECO "D85"]
[WhiteElo "2268"]
[BlackElo "2409"]
[Annotator "NA"]
[PlyCount "40"]
[EventDate "2018.12.27"]
[EventType "swiss"]
[EventCountry "POL"]
[SourceTitle "playchess.com"]
[Source "ChessBase"]
[SourceQuality "1"]
[TimeControl "40/5400+30:1800+30"]

1. d4 {[%emt 0:00:00]} Nf6 {[%emt 0:02:38]} 2. c4 {[%emt 0:00:00]} g6 {[%emt 0:00:25]} 3. Nc3 {[%emt 0:00:00]} d5 {[%emt 0:00:04]} 4. cxd5 {[%emt 0:00:00]} Nxd5 {[%emt 0:00:03]} 5. e4 {[%emt 0:00:00]} Nxc3 {[%emt 0:00:03]} 6. bxc3 {[%emt 0:00:06]} Bg7 {[%emt 0:00:04]} 7. Qa4+ {[%emt 0:00:45]} Nd7 {[%emt 0:04:07]} 8. Nf3 {[%emt 0:01:45]} O-O {[%emt 0:00:26]} 9. Be2 {[%emt 0:01:36]} c5 {[%emt 0:07:11]} 10. O-O {[%emt 0:01:08]} Qc7 {[%emt 0:04:10]} 11. Be3 {[%emt 0:02:51]} b6 {[%emt 0:19:53]} 12. Rac1 {[%emt 0:02:29]} Bb7 {[%emt 0:06:17]} 13. d5 {[%emt 0:03:25]} a6 {[%emt 0:11:48]} 14. c4 {[%emt 0:17:51]} Nf6 {[%emt 0:29:35]} 15. Nd2 {[%emt 0:04:27]} e6 {[%emt 0:01:22]} 16. Qb3 {[%emt 0:11:53]} exd5 {[%emt 0:00:42]} 17. exd5 {[%emt 0:02:37]} Bc8 {[%emt 0:00:27]} 18. h3 {[%emt 0:08:15]} Re8 {[%emt 0:00:36]} 19. Rfe1 {[%emt 0:01:43]} Rb8 {[%emt 0:02:51]} 20. Bd3 {[%emt 0:10:30]} Bd7 {[%emt 0:00:58]} 1/2-1/2

[Event "XXIX Cracovia 2018"]
[Site "Krakow"]
[Date "2018.12.28"]
[Round "2"]
[White "Mis, Mieszko"]
[Black "Molenda, Marcin"]
[Result "0-1"]
[ECO "A62"]
[WhiteElo "2260"]
[BlackElo "2383"]
[Annotator "NA"]
[PlyCount "82"]
[EventDate "2018.12.27"]
[EventType "swiss"]
[EventCountry "POL"]
[SourceTitle "playchess.com"]
[Source "ChessBase"]
[SourceQuality "1"]
[TimeControl "40/5400+30:1800+30"]

1. d4 {[%emt 0:00:00]} Nf6 {[%emt 0:00:00]} 2. c4 {[%emt 0:00:00]} e6 {[%emt 0:00:07]} 3. g3 {[%emt 0:00:00]} c5 {[%emt 0:00:30]} 4. d5 {[%emt 0:00:00]} exd5 {[%emt 0:00:12]} 5. cxd5 {[%emt 0:00:04]} d6 {[%emt 0:00:07]} 6. Nc3 {[%emt 0:00:06]} g6 {[%emt 0:00:34]} 7. Bg2 {[%emt 0:00:06]} Bg7 {[%emt 0:00:08]} 8. Nf3 {[%emt 0:00:04]} O-O {[%emt 0:00:09]} 9. O-O {[%emt 0:00:04]} Re8 {[%emt 0:00:32]} 10. Bf4 {[%emt 0:01:49]} h6 {[%emt 0:01:05]} 11. Re1 {[%emt 0:09:14]} g5 {[%emt 0:02:08]} 12. Bc1 {[%emt 0:05:42]} a6 {[%emt 0:00:26]} 13. a4 {[%emt 0:04:07]} Nbd7 {[%emt 0:00:17]} 14. Nd2 {[%emt 0:05:33]} Ne5 {[%emt 0:02:42]} 15. Rb1 {[%emt 0:04:31]} Bf5 {[%emt 0:02:33]} 16. e4 {[%emt 0:02:16]} Nd3 {[%emt 0:03:58]} 17. Rf1 {[%emt 0:07:05]} Bg6 {[%emt 0:04:17]} 18. Qc2 {[%emt 0:15:16]} Nxc1 {[%emt 0:02:14]} 19. Rbxc1 {[%emt 0:00:37]} Rb8 {[%emt 0:00:33]} 20. Rfe1 {[%emt 0:12:22]} b5 {[%emt 0:02:02]} 21. axb5 {[%emt 0:00:43]} axb5 {[%emt 0:00:06]} 22. Qd1 {[%emt 0:06:34]} Nd7 {[%emt 0:05:34]} 23. Bf1 {[%emt 0:02:16]} c4 {[%emt 0:03:03]} 24. b4 {[%emt 0:01:30]} Qb6 {[%emt 0:00:42]} 25. Nf3 {[%emt 0:03:34]} Ra8 {[%emt 0:03:35]} 26. Bh3 {[%emt 0:01:05]} Ne5 {[%emt 0:23:19]} 27. Nxe5 {[%emt 0:00:06]} Bxe5 {[%emt 0:00:28]} 28. Bf5 {[%emt 0:05:06]} Bxc3 {[%emt 0:06:42]} 29. Rxc3 {[%emt 0:00:20]} Bxf5 {[%emt 0:00:06]} 30. exf5 {[%emt 0:00:04]} Rxe1+ {[%emt 0:00:03]} 31. Qxe1 {[%emt 0:00:03]} Qd4 {[%emt 0:00:12]} 32. Rc1 {[%emt 0:03:36]} Qxd5 {[%emt 0:01:23]} 33. Qe7 {[%emt 0:00:48]} Qe5 {[%emt 0:01:08]} 34. Qd7 {[%emt 0:04:32]} Ra2 {[%emt 0:02:44]} 35. Qd8+ {[%emt 0:01:12]} Kg7 {[%emt 0:00:25]} 36. Rd1 {[%emt 0:01:32]} Qxf5 {[%emt 0:00:50]} 37. Qb6 {[%emt 0:00:22]} c3 {[%emt 0:08:12]} 38. Rxd6 {[%emt 0:02:03]} Ra1+ {[%emt 0:02:50]} 39. Kg2 {[%emt 0:00:05]} Qe4+ {[%emt 0:00:30]} 40. Kh3 {[%emt 0:00:00]} c2 {[%emt 0:00:00]} 41. Rxh6 {[%emt 0:00:44]} Qf5+ {[%emt 0:02:01]} 0-1

[Event "XXIX Cracovia 2018"]
[Site "Krakow"]
[Date "2018.12.28"]
[Round "2"]
[White "Chmiel, Marcin"]
[Black "Biriukov, Nikolai"]
[Result "0-1"]
[ECO "B43"]
[WhiteElo "2247"]
[BlackElo "2365"]
[Annotator "NA"]
[PlyCount "134"]
[EventDate "2018.12.27"]
[EventType "swiss"]
[EventCountry "POL"]
[SourceTitle "playchess.com"]
[Source "ChessBase"]
[SourceQuality "1"]
[TimeControl "40/5400+30:1800+30"]

1. e4 {[%emt 0:00:00]} c5 {[%emt 0:00:00]} 2. Nf3 {[%emt 0:00:08]} a6 {[%emt 0:00:00]} 3. Nc3 {[%emt 0:00:29]} e6 {[%emt 0:00:00]} 4. d4 {[%emt 0:00:08]} cxd4 {[%emt 0:00:00]} 5. Nxd4 {[%emt 0:00:10]} Qc7 {[%emt 0:00:00]} 6. Bd3 {[%emt 0:00:16]} Bd6 {[%emt 0:03:29]} 7. Qg4 {[%emt 0:05:51]} Be5 {[%emt 0:07:04]} 8. Be3 {[%emt 0:03:13]} Nf6 {[%emt 0:00:30]} 9. Qh4 {[%emt 0:01:29]} Nc6 {[%emt 0:01:12]} 10. Nxc6 {[%emt 0:04:06]} Qxc6 {[%emt 0:01:58]} 11. O-O {[%emt 0:02:28]} b5 {[%emt 0:01:45]} 12. f4 {[%emt 0:16:54]} Bxc3 {[%emt 0:03:52]} 13. bxc3 {[%emt 0:00:08]} Nxe4 {[%emt 0:00:53]} 14. Bxe4 {[%emt 0:08:49]} Qxe4 {[%emt 0:00:03]} 15. Bc5 {[%emt 0:01:42]} f6 {[%emt 0:00:11]} 16. Rad1 {[%emt 0:13:37]} Bb7 {[%emt 0:08:09]} 17. Qf2 {[%emt 0:00:38]} Bc6 {[%emt 0:06:16]} 18. f5 {[%emt 0:04:33]} Qxf5 {[%emt 0:09:17]} 19. Qxf5 {[%emt 0:00:15]} exf5 {[%emt 0:00:04]} 20. Rde1+ {[%emt 0:01:28]} Kf7 {[%emt 0:05:17]} 21. Re7+ {[%emt 0:03:00]} Kg6 {[%emt 0:00:08]} 22. Rfe1 {[%emt 0:01:03]} Rhg8 {[%emt 0:01:40]} 23. Bd6 {[%emt 0:05:02]} h6 {[%emt 0:05:22]} 24. R1e3 {[%emt 0:00:31]} Kh7 {[%emt 0:06:56]} 25. a3 {[%emt 0:01:38]} Be4 {[%emt 0:01:35]} 26. Rg3 {[%emt 0:03:20]} Bc6 {[%emt 0:04:31]} 27. Rge3 {[%emt 0:00:56]} Rac8 {[%emt 0:01:19]} 28. h4 {[%emt 0:04:56]} h5 {[%emt 0:08:18]} 29. Kf2 {[%emt 0:02:40]} Kh6 {[%emt 0:01:46]} 30. Rf7 {[%emt 0:02:29]} Rce8 {[%emt 0:00:42]} 31. Rxe8 {[%emt 0:01:37]} Rxe8 {[%emt 0:00:02]} 32. Bf8 {[%emt 0:04:04]} Kh7 {[%emt 0:00:04]} 33. Bc5 {[%emt 0:02:30]} Kg8 {[%emt 0:01:11]} 34. Re7 {[%emt 0:00:10]} Rxe7 {[%emt 0:00:04]} 35. Bxe7 {[%emt 0:00:07]} Kf7 {[%emt 0:00:26]} 36. Bb4 {[%emt 0:01:00]} f4 {[%emt 0:01:39]} 37. g3 {[%emt 0:03:15]} fxg3+ {[%emt 0:02:24]} 38. Kxg3 {[%emt 0:00:02]} g5 {[%emt 0:00:15]} 39. hxg5 {[%emt 0:00:19]} fxg5 {[%emt 0:00:14]} 40. Ba5 {[%emt 0:00:00]} Be4 {[%emt 0:00:00]} 41. c4 {[%emt 0:00:56]} Bxc2 {[%emt 0:00:49]} 42. cxb5 {[%emt 0:00:13]} axb5 {[%emt 0:00:05]} 43. Bd8 {[%emt 0:00:19]} Kg6 {[%emt 0:00:05]} 44. Kf3 {[%emt 0:01:02]} h4 {[%emt 0:00:14]} 45. Be7 {[%emt 0:00:55]} Kh5 {[%emt 0:00:10]} 46. Bd8 {[%emt 0:00:24]} g4+ {[%emt 0:00:16]} 47. Kf4 {[%emt 0:00:09]} Bd1 {[%emt 0:01:13]} 48. Be7 {[%emt 0:00:28]} g3 {[%emt 0:01:55]} 49. Bd8 {[%emt 0:00:35]} Bg4 {[%emt 0:00:43]} 50. Be7 {[%emt 0:00:29]} Be6 {[%emt 0:00:14]} 51. Bd8 {[%emt 0:00:22]} g2 {[%emt 0:00:36]} 52. Bb6 {[%emt 0:00:08]} h3 {[%emt 0:00:21]} 53. Bg1 {[%emt 0:00:44]} Kg6 {[%emt 0:00:09]} 54. Bh2 {[%emt 0:00:38]} Kf6 {[%emt 0:00:11]} 55. Bg1 {[%emt 0:00:19]} Ke7 {[%emt 0:00:46]} 56. Ke5 {[%emt 0:00:31]} d6+ {[%emt 0:01:04]} 57. Ke4 {[%emt 0:00:33]} Kf6 {[%emt 0:00:28]} 58. Kf4 {[%emt 0:00:19]} Bd7 {[%emt 0:00:17]} 59. Bh2 {[%emt 0:00:39]} Ke6 {[%emt 0:00:10]} 60. Ke4 {[%emt 0:02:36]} Bc6+ {[%emt 0:00:10]} 61. Kd4 {[%emt 0:00:26]} Bb7 {[%emt 0:02:09]} 62. Ke3 {[%emt 0:02:43]} Kd5 {[%emt 0:00:15]} 63. Kd3 {[%emt 0:00:19]} Bc8 {[%emt 0:00:11]} 64. Ke3 {[%emt 0:00:31]} Kc4 {[%emt 0:00:10]} 65. Kf2 {[%emt 0:00:16]} d5 {[%emt 0:00:07]} 66. Ke3 {[%emt 0:00:10]} Be6 {[%emt 0:00:22]} 67. Bg1 {[%emt 0:00:15]} Kc3 {[%emt 0:00:30] Kd4+} 0-1

[Event "XXIX Cracovia 2018"]
[Site "Krakow"]
[Date "2018.12.28"]
[Round "2"]
[White "Rakhmangulova, Anastasiya"]
[Black "Paszewski, Mateusz"]
[Result "1/2-1/2"]
[ECO "B78"]
[WhiteElo "2233"]
[BlackElo "2342"]
[Annotator "NA"]
[PlyCount "55"]
[EventDate "2018.12.27"]
[EventType "swiss"]
[EventCountry "POL"]
[SourceTitle "playchess.com"]
[Source "ChessBase"]
[SourceQuality "1"]
[TimeControl "40/5400+30:1800+30"]

1. e4 {[%emt 0:00:00]} c5 {[%emt 0:00:00]} 2. Nf3 {[%emt 0:00:00]} Nc6 {[%emt 0:00:00]} 3. d4 {[%emt 0:00:00]} cxd4 {[%emt 0:00:00]} 4. Nxd4 {[%emt 0:00:00]} g6 {[%emt 0:00:03]} 5. Nc3 {[%emt 0:00:00]} Bg7 {[%emt 0:00:03]} 6. Be3 d6 {[%emt 0:02:23]} 7. Qd2 {[%emt 0:00:25]} Nf6 {[%emt 0:02:07]} 8. f3 {[%emt 0:00:05]} O-O {[%emt 0:00:04]} 9. Bc4 {[%emt 0:00:03]} Bd7 {[%emt 0:00:06]} 10. O-O-O {[%emt 0:00:10]} Rc8 {[%emt 0:00:24]} 11. Bb3 {[%emt 0:00:05]} Nxd4 {[%emt 0:00:04]} 12. Bxd4 {[%emt 0:00:04]} b5 {[%emt 0:00:02]} 13. Bxa7 {[%emt 0:08:14]} b4 {[%emt 0:05:23]} 14. Nd5 {[%emt 0:00:08]} Nxd5 {[%emt 0:00:05]} 15. exd5 {[%emt 0:00:07]} Qa5 {[%emt 0:00:07]} 16. Qe3 {[%emt 0:05:29]} Ba4 {[%emt 0:19:32]} 17. Bd4 {[%emt 0:04:19]} Rc7 {[%emt 0:17:51]} 18. Bxg7 {[%emt 0:18:10]} Kxg7 {[%emt 0:00:00]} 19. h4 {[%emt 0:01:42]} Rfc8 {[%emt 0:09:33]} 20. Rd2 {[%emt 0:00:39]} Bxb3 {[%emt 0:00:43]} 21. Qxb3 {[%emt 0:00:06]} Ra8 {[%emt 0:00:08]} 22. Rd4 {[%emt 0:08:44]} Qxa2 {[%emt 0:02:38]} 23. Qxa2 {[%emt 0:00:44]} Rxa2 {[%emt 0:00:03]} 24. Rhd1 {[%emt 0:00:24]} Rc5 {[%emt 0:03:53]} 25. Kb1 {[%emt 0:09:30]} Rca5 {[%emt 0:00:35]} 26. Kc1 {[%emt 0:00:04]} Rc5 {[%emt 0:00:17]} 27. Kb1 {[%emt 0:00:05]} Rca5 {[%emt 0:00:24]} 28. Kc1 {[%emt 0:00:05]} 1/2-1/2

[Event "XXIX Cracovia 2018"]
[Site "Krakow"]
[Date "2018.12.28"]
[Round "2"]
[White "Bukojemski, Adam"]
[Black "Colijn, Stefan"]
[Result "1/2-1/2"]
[ECO "B07"]
[WhiteElo "2218"]
[BlackElo "2331"]
[Annotator "NA"]
[PlyCount "83"]
[EventDate "2018.12.27"]
[EventType "swiss"]
[EventCountry "POL"]
[SourceTitle "playchess.com"]
[Source "ChessBase"]
[SourceQuality "1"]
[TimeControl "40/5400+30:1800+30"]

1. e4 d6 2. d4 Nf6 3. Nc3 c6 4. f4 Qa5 5. Bd3 e5 6. Nf3 exd4 7. Nxd4 g6 8. O-O Bg7 9. Kh1 O-O 10. f5 Nbd7 11. Qe1 Re8 12. Qh4 d5 13. fxg6 hxg6 14. exd5 Nxd5 15. Ne4 Nf8 16. Rxf7 Kxf7 17. Nd6+ Kg8 18. Nxe8 Bxd4 19. Bh6 Bxb2 20. Rf1 Bf5 21. Bxf5 Rxe8 22. Qg3 Qc3 23. Be6+ Kh8 24. Rxf8+ Rxf8 25. Qxc3+ Bxc3 26. Bxf8 Bb4 27. Bh6 Bc3 28. h4 Kh7 29. Bc1 Kg7 30. Bc8 b5 31. Bd7 Nb4 32. a3 Nxc2 33. Bxc6 b4 34. axb4 Nxb4 35. Be8 Nd3 36. Be3 a5 37. g4 Ne5 38. g5 Nf3 39. Bf2 Bd2 40. Kg2 Nxg5 41. Bd4+ Kh6 42. hxg5+ 1/2-1/2

[Event "XXIX Cracovia 2018"]
[Site "Krakow"]
[Date "2018.12.28"]
[Round "2"]
[White "Strybuk, Artsiom I"]
[Black "Grela, Kacper"]
[Result "0-1"]
[ECO "D37"]
[WhiteElo "2172"]
[BlackElo "2305"]
[Annotator "NA"]
[PlyCount "118"]
[EventDate "2018.12.27"]
[EventType "swiss"]
[EventCountry "POL"]
[SourceTitle "playchess.com"]
[Source "ChessBase"]
[SourceQuality "1"]
[TimeControl "40/5400+30:1800+30"]

1. d4 {[%emt 0:00:00]} Nf6 {[%emt 0:00:00]} 2. c4 {[%emt 0:00:00]} e6 {[%emt 0:00:14]} 3. Nc3 d5 {[%emt 0:00:36]} 4. Nf3 {[%emt 0:03:31]} Be7 {[%emt 0:00:14]} 5. g3 {[%emt 0:01:10]} dxc4 {[%emt 0:03:37]} 6. Bg2 {[%emt 0:00:54]} Nbd7 {[%emt 0:02:45]} 7. Nd2 {[%emt 0:09:36]} Nb6 {[%emt 0:10:22]} 8. Nxc4 {[%emt 0:00:24]} Nxc4 {[%emt 0:00:17]} 9. Qa4+ {[%emt 0:00:09]} c6 {[%emt 0:00:26]} 10. Qxc4 {[%emt 0:00:26]} O-O {[%emt 0:00:34]} 11. O-O {[%emt 0:06:49]} Qa5 {[%emt 0:06:49]} 12. Rb1 {[%emt 0:11:17]} b5 {[%emt 0:07:28]} 13. b4 {[%emt 0:17:18]} bxc4 {[%emt 0:05:25]} 14. bxa5 {[%emt 0:00:02]} Nd5 {[%emt 0:00:24]} 15. Bd2 {[%emt 0:04:22]} Ba6 {[%emt 0:03:48]} 16. e4 {[%emt 0:09:54]} Nb4 {[%emt 0:05:46]} 17. e5 {[%emt 0:04:48]} Rfd8 {[%emt 0:03:57]} 18. Be3 {[%emt 0:01:42]} Rab8 {[%emt 0:03:25]} 19. a3 {[%emt 0:06:03]} Nd5 {[%emt 0:01:52]} 20. Bxd5 {[%emt 0:01:38]} exd5 {[%emt 0:03:58]} 21. Rxb8 {[%emt 0:00:31]} Rxb8 {[%emt 0:00:58]} 22. Rb1 {[%emt 0:00:02]} Rb3 {[%emt 0:04:53]} 23. Rxb3 {[%emt 0:00:19]} cxb3 {[%emt 0:00:07]} 24. Bc1 {[%emt 0:00:09]} Bd8 {[%emt 0:01:04]} 25. Bb2 {[%emt 0:01:31]} Bxa5 {[%emt 0:01:48]} 26. f4 {[%emt 0:03:51]} c5 {[%emt 0:07:38]} 27. Na4 {[%emt 0:10:13]} cxd4 {[%emt 0:01:32]} 28. Bxd4 {[%emt 0:00:45]} Bb5 {[%emt 0:01:18]} 29. Nb2 {[%emt 0:00:26]} h5 {[%emt 0:02:03]} 30. Kf2 {[%emt 0:00:20]} a6 {[%emt 0:02:41]} 31. Ke3 {[%emt 0:00:58]} Kh7 {[%emt 0:04:11]} 32. Bc5 {[%emt 0:02:53]} Kg6 {[%emt 0:01:48]} 33. Kd4 {[%emt 0:00:59]} Bc4 {[%emt 0:00:24]} 34. Bb4 {[%emt 0:03:11]} Bb6+ {[%emt 0:02:58]} 35. Bc5 {[%emt 0:00:19]} Bd8 {[%emt 0:01:49]} 36. Bf8 {[%emt 0:00:48]} Kf5 {[%emt 0:00:53]} 37. Bxg7 {[%emt 0:00:16]} Bb6+ {[%emt 0:01:34]} 38. Kc3 {[%emt 0:00:12]} Ba5+ {[%emt 0:02:54]} 39. Kd4 {[%emt 0:00:02]} Bb6+ {[%emt 0:00:00]} 40. Kc3 {[%emt 0:00:00]} Kg4 {[%emt 0:00:00]} 41. Bf6 {[%emt 0:09:59]} Bc5 {[%emt 0:10:46]} 42. a4 {[%emt 0:02:53]} Ba3 {[%emt 0:06:17]} 43. Bg7 {[%emt 0:12:02]} Kf5 {[%emt 0:00:40]} 44. h3 {[%emt 0:04:19]} a5 {[%emt 0:01:30]} 45. Nd1 {[%emt 0:02:55]} Ke4 {[%emt 0:01:15]} 46. Kd2 {[%emt 0:02:26]} d4 {[%emt 0:01:39]} 47. g4 {[%emt 0:00:19]} hxg4 {[%emt 0:00:17]} 48. hxg4 {[%emt 0:00:01]} b2 {[%emt 0:00:37]} 49. Nxb2 {[%emt 0:00:58]} Bxb2 {[%emt 0:00:05]} 50. f5 {[%emt 0:00:12]} Bb3 {[%emt 0:01:08]} 51. e6 {[%emt 0:01:02]} Bc3+ {[%emt 0:00:16]} 52. Kc1 {[%emt 0:00:34]} fxe6 {[%emt 0:00:06]} 53. fxe6 {[%emt 0:00:27]} Bxe6 {[%emt 0:00:10]} 54. g5 {[%emt 0:00:06]} Kd3 {[%emt 0:00:37]} 55. Bf6 {[%emt 0:00:23]} Bf5 {[%emt 0:00:13]} 56. Kd1 {[%emt 0:00:25]} Kc4 {[%emt 0:00:07]} 57. Be5 {[%emt 0:01:08]} d3 {[%emt 0:00:10]} 58. Bf4 {[%emt 0:00:31]} Kb3 {[%emt 0:00:23]} 59. Bc7 {[%emt 0:00:30]} Bg4+ {[%emt 0:00:07]} 0-1